fUST/lending_fUST_20250417
["ID","MTS","AMOUNT","RATE_DAILY","PERIOD"]
[358182106,1744819603155,-188.85953158,0.00022557,2]
[358182107,1744819650089,-335.53197785,0.00020457,2]
[358182108,1744819650114,-500.0,0.00021918,2]
[358182109,1744819650137,-40.22642915,0.00022457,2]
[358182138,1744819832442,-199.49450272,0.00022357,2]
[358182139,1744819832453,-268.54549728,0.00022457,2]
[358182140,1744819832465,-1198.56788948,0.00022457,2]
[358182141,1744819832475,-250.0,0.00022457,2]
[358182142,1744819832486,-158.5646888,0.000232,2]
[358182143,1744819832496,-381.39594661,0.00023202,2]
[358182144,1744819832506,-300.0,0.00023301,2]
[358182145,1744819832515,-300.0,0.00023301,2]
[358182146,1744819832525,-24900.0,0.00023306,2]
[358182147,1744819832535,-541.3154621,0.00023416,2]
[358182148,1744819832545,-225.288792,0.00023606,2]
[358182149,1744819832555,-539.2856307,0.00023657,2]
[358182150,1744819832565,-500.957625,0.00023657,2]
[358182151,1744819832575,-734.30246354,0.0002398,3]
[358182152,1744819832584,-381.39594657,0.00023983,2]
[358182153,1744819832593,-933.80074171,0.000245,2]
[358182154,1744819832603,-1556.43434714,0.000245,2]
[358182155,1744819832613,-437.96122894,0.00024556,2]
[358182156,1744819832624,-303.43263409,0.00024557,2]
[358182157,1744819832634,-464.49343383,0.00024557,2]
[358182158,1744819832643,-1000.0,0.00024557,2]
[358182159,1744819832652,-11766.13434531,0.00024557,2]
[358182160,1744819832665,-7116.4597546,0.00024557,2]
[358182170,1744819838163,-163.16757105,0.00023301,2]
[358182172,1744819838174,-500.0,0.00023301,2]
[358182174,1744819838184,-500.0,0.00023301,2]
[358182176,1744819838193,-500.0,0.00023301,2]
[358182178,1744819838202,-500.0,0.00023301,2]
[358182180,1744819838212,-500.0,0.00023301,2]
[358182182,1744819838222,-500.0,0.00023301,2]
[358182184,1744819838231,-500.0,0.00023301,2]
[358182186,1744819838241,-500.0,0.00023301,2]
[358182188,1744819838251,-500.0,0.00023301,2]
[358182189,1744819838260,-493.20740923,0.00023301,2]
[358182190,1744819838271,-500.0,0.00023301,2]
[358182191,1744819838281,-500.0,0.00023301,2]
[358182192,1744819838290,-44.97568348,0.00023301,2]
[358182209,1744819840604,-416.65490336,0.00023301,2]
[358182211,1744819840616,-38.36941316,0.00023301,2]
[358182213,1744819840626,-500.0,0.00023301,2]
[358182214,1744819840636,-500.0,0.00023301,2]
[358182216,1744819840646,-500.0,0.00023301,2]
[358182217,1744819840656,-500.0,0.00023301,2]
[358182218,1744819840666,-500.0,0.00023301,2]
[358182219,1744819840677,-500.0,0.00023301,2]
[358182220,1744819840687,-500.0,0.00023301,2]
[358182221,1744819840697,-500.0,0.00023301,2]
[358182222,1744819840707,-500.0,0.00023301,2]
[358182223,1744819840718,-500.0,0.00023301,2]
[358182224,1744819840728,-500.0,0.00023301,2]
[358182225,1744819840739,-500.0,0.00023301,2]
[358182226,1744819840749,-500.0,0.00023301,2]
[358182227,1744819840759,-500.0,0.00023301,2]
[358182228,1744819840769,-500.0,0.00023301,2]
[358182229,1744819840779,-500.0,0.00023301,2]
[358182230,1744819840789,-156.75549363,0.00023301,2]
[358182231,1744819840799,-500.0,0.00023301,2]
[358182232,1744819840809,-44509.44697773,0.00024557,2]
[358182233,1744819840866,-2315.58,0.00024557,2]
[358182257,1744819844566,-1125.0,0.00024557,2]
[358182258,1744819844652,-632.02137047,0.00024557,2]
[358182259,1744819844664,-519.47999996,0.00024557,2]
[358182260,1744819844676,-48607.66406568,0.00024557,2]
[358182267,1744819846291,-1668.20009691,0.00024557,2]
[358182268,1744819846380,-1255.5,0.00024557,2]
[358182269,1744819846395,-3991.62798568,0.00024557,2]
[358182270,1744819846407,-3095.95329993,0.00024557,2]
[358182271,1744819846464,-1982.31613463,0.00024557,2]
[358182273,1744819846476,-1597.8,0.00024557,2]
[358182279,1744820395400,-492.43932044,0.00021167,2]
[358182282,1744820822468,-261.20366511,0.00019067,2]
[358182283,1744820903399,-23.78742759,0.00019067,2]
[358182284,1744820903425,-125.26255206,0.00021167,2]
[358182285,1744820903453,-14.01606959,0.00021232,2]
[358182385,1744821032485,-211.27272241,0.00021232,2]
[358182386,1744821032495,-492.43932044,0.0002199,2]
[358182387,1744821032505,-348.21091346,0.00022,2]
[358182388,1744821032515,-1000.0,0.00022,2]
[358182389,1744821032525,-1037.6228981,0.0002205,2]
[358182390,1744821032534,-1096.61943093,0.0002205,2]
[358182391,1744821032545,-300.0,0.00022054,2]
[358182392,1744821032555,-300.0,0.00022054,2]
[358182393,1744821032565,-5361.07405147,0.00022055,2]
[358182394,1744821032574,-290.98510467,0.000221,2]
[358182395,1744821032583,-151.0,0.00022139,2]
[358182396,1744821032593,-151.0,0.00022144,2]
[358182397,1744821032603,-528.66610973,0.00022149,2]
[358182398,1744821032612,-3097.37119598,0.0002215,2]
[358182399,1744821032621,-234.55963968,0.0002215,3]
[358182400,1744821032631,-2500.050612,0.00022151,7]
[358182401,1744821032641,-2500.050612,0.00022151,7]
[358182402,1744821032650,-1285.45043065,0.00022151,7]
[358182412,1744821038362,-555.19929333,0.00022149,2]
[358182413,1744821038373,-2573.17085249,0.00022149,2]
[358182414,1744821038384,-185.84280646,0.00022149,2]
[358182415,1744821038394,-523.12648781,0.00022149,2]
[358182416,1744821038404,-363.16055991,0.00022149,2]
[358182417,1744821038475,-2210.01029258,0.00022149,2]
[358182419,1744821038485,-2573.17085249,0.00022149,2]
[358182420,1744821038496,-2573.17085249,0.00022149,2]
[358182422,1744821038509,-2573.17085249,0.00022149,2]
[358182423,1744821038520,-2573.17085249,0.00022149,2]
[358182424,1744821038529,-2573.17085249,0.00022149,2]
[358182425,1744821038540,-2573.17085249,0.00022149,2]
[358182426,1744821038551,-2573.17085249,0.00022149,2]
[358182427,1744821038562,-2573.17085249,0.00022149,2]
[358182428,1744821038572,-2573.17085249,0.00022149,2]
[358182429,1744821038582,-2573.17085249,0.00022149,2]
[358182430,1744821038592,-2573.17085249,0.00022149,2]
[358182431,1744821038603,-2573.17085249,0.00022149,2]
[358182432,1744821038615,-2573.17085249,0.00022149,2]
[358182433,1744821038626,-2573.17085249,0.00022149,2]
[358182434,1744821038637,-2573.17085249,0.00022149,2]
[358182435,1744821038647,-2573.17085249,0.00022149,2]
[358182436,1744821038657,-2573.17085249,0.00022149,2]
[358182437,1744821038668,-2573.17085249,0.00022149,2]
[358182438,1744821038680,-2573.17085249,0.00022149,2]
[358182439,1744821038691,-2573.17085249,0.00022149,2]
[358182440,1744821038702,-2573.17085249,0.00022149,2]
[358182441,1744821038712,-2573.17085249,0.00022149,2]
[358182442,1744821038724,-2573.17085249,0.00022149,2]
[358182443,1744821038735,-2573.17085249,0.00022149,2]
[358182444,1744821038746,-2573.17085249,0.00022149,2]
[358182445,1744821038759,-2573.17085249,0.00022149,2]
[358182446,1744821038770,-2573.17085249,0.00022149,2]
[358182447,1744821038781,-2573.17085249,0.00022149,2]
[358182448,1744821038792,-2573.17085249,0.00022149,2]
[358182449,1744821038801,-2573.17085249,0.00022149,2]
[358182450,1744821038812,-688.82146169,0.00022149,2]
[358182451,1744821038824,-1884.3493908,0.00022149,2]
[358182452,1744821038835,-2573.17085249,0.00022149,2]
[358182453,1744821038845,-2573.17085249,0.00022149,2]
[358182454,1744821038855,-1034.88241747,0.00022149,2]
[358182455,1744821038868,-1538.28843502,0.00022149,2]
[358182456,1744821038879,-2573.17085249,0.00022149,2]
[358182457,1744821038889,-1531.68594925,0.00022149,2]
[358182461,1744821040447,-763.86,0.00022149,2]
[358182462,1744821040563,-277.62490324,0.00022149,2]
[358182463,1744821040573,-2573.17085249,0.00022149,2]
[358182464,1744821040583,-2573.17085249,0.00022149,2]
[358182465,1744821040593,-2573.17085249,0.00022149,2]
[358182466,1744821040604,-2573.17085249,0.00022149,2]
[358182467,1744821040614,-2573.17085249,0.00022149,2]
[358182468,1744821040624,-2573.17085249,0.00022149,2]
[358182469,1744821040634,-2573.17085249,0.00022149,2]
[358182470,1744821040644,-2573.17085249,0.00022149,2]
[358182471,1744821040655,-2573.17085249,0.00022149,2]
[358182472,1744821040664,-2573.17085249,0.00022149,2]
[358182473,1744821040674,-1297.73626692,0.00022149,2]
[358182474,1744821040686,-1275.43458557,0.00022149,2]
[358182475,1744821040696,-22.69670333,0.00022149,2]
[358182497,1744821044111,-417.51790065,0.00022149,2]
[358182498,1744821044122,-2132.95624851,0.00022149,2]
[358182499,1744821044132,-2573.17085249,0.00022149,2]
[358182500,1744821044142,-2573.17085249,0.00022149,2]
[358182501,1744821044152,-2573.17085249,0.00022149,2]
[358182502,1744821044162,-2573.17085249,0.00022149,2]
[358182503,1744821044171,-2573.17085249,0.00022149,2]
[358182504,1744821044180,-2573.17085249,0.00022149,2]
[358182505,1744821044189,-2573.17085249,0.00022149,2]
[358182506,1744821044198,-2573.17085249,0.00022149,2]
[358182507,1744821044207,-2573.17085249,0.00022149,2]
[358182508,1744821044216,-2573.17085249,0.00022149,2]
[358182509,1744821044226,-1214.60018135,0.00022151,7]
[358182510,1744821044236,-2500.050612,0.00022151,7]
[358182511,1744821044246,-2500.050612,0.00022151,7]
[358182512,1744821044256,-2500.050612,0.00022151,7]
[358182513,1744821044266,-2500.050612,0.00022151,7]
[358182514,1744821044276,-2500.050612,0.00022151,7]
[358182516,1744821044286,-2500.050612,0.00022151,7]
[358182517,1744821044296,-2500.050612,0.00022151,7]
[358182518,1744821044306,-2500.050612,0.00022151,7]
[358182519,1744821044316,-2500.050612,0.00022151,7]
[358182520,1744821044326,-6667.09494408,0.00022157,2]
[358182521,1744821044339,-23873.55025786,0.00022157,2]
[358182522,1744821044350,-2706.93594032,0.00022157,2]
[358182523,1744821044362,-1036.06497871,0.00022157,2]
[358182550,1744821046270,-40443.26194683,0.00022157,2]
[358182551,1744821046281,-2500.050612,0.00022157,7]
[358182552,1744821046291,-2500.050612,0.00022157,7]
[358182553,1744821046301,-500.0,0.00022173,2]
[358182554,1744821046311,-500.0,0.00022173,2]
[358182555,1744821046320,-500.0,0.00022173,2]
[358182556,1744821046330,-300.0,0.00022173,2]
[358182557,1744821046340,-500.0,0.00022173,2]
[358182558,1744821046351,-500.0,0.00022173,2]
[358182559,1744821046360,-500.0,0.00022173,2]
[358182560,1744821046370,-500.0,0.00022173,2]
[358182561,1744821046380,-502.35679759,0.00022173,2]
[358182562,1744821046389,-500.0,0.00022173,2]
[358182563,1744821046399,-500.0,0.00022173,2]
[358182564,1744821046409,-505.4443948,0.00022173,2]
[358182565,1744821046418,-500.0,0.00022173,2]
[358182566,1744821046428,-500.0,0.00022173,2]
[358182567,1744821046437,-422.1050831,0.00022173,2]
[358182568,1744821046447,-500.0,0.00022173,2]
[358182569,1744821046458,-500.0,0.00022173,2]
[358182570,1744821046472,-500.0,0.00022173,2]
[358182571,1744821046482,-500.0,0.00022173,2]
[358182572,1744821046492,-504.14243236,0.00022173,2]
[358182573,1744821046503,-500.0,0.00022173,2]
[358182574,1744821046512,-161.34890866,0.00022173,2]
[358182575,1744821046522,-500.0,0.00022173,2]
[358182576,1744821046531,-500.0,0.00022173,2]
[358182577,1744821046541,-156.587,0.00022199,2]
[358182578,1744821046552,-500.0,0.000222,2]
[358182579,1744821046562,-500.0,0.000222,2]
[358182580,1744821046572,-500.0,0.000222,2]
[358182581,1744821046582,-500.0,0.000222,2]
[358182582,1744821046592,-500.0,0.000222,2]
[358182583,1744821046602,-335.54397944,0.000222,2]
[358182584,1744821047039,-164.45602056,0.000222,2]
[358182585,1744821047048,-194.80074453,0.000222,2]
[358182586,1744821047058,-500.0,0.000222,2]
[358182587,1744821047067,-500.0,0.000222,2]
[358182588,1744821047076,-329.94282081,0.000222,2]
[358182589,1744821047221,-170.05717919,0.000222,2]
[358182590,1744821047232,-500.0,0.000222,2]
[358182591,1744821047242,-500.0,0.000222,2]
[358182592,1744821047254,-25.40282081,0.000222,2]
[358182593,1744821047267,-614.33710999,0.000222,2]
[358182594,1744821047276,-500.0,0.000222,2]
[358182595,1744821047287,-500.0,0.000222,2]
[358182596,1744821047297,-68.55121039,0.00022254,2]
[358182597,1744821047308,-177.36455204,0.00022254,2]
[358182598,1744821047318,-250.0,0.00022257,2]
[358182599,1744821047328,-662.61419249,0.00022257,2]
[358182600,1744821047338,-1000.0,0.00022357,2]
[358182601,1744821047348,-176.914737,0.00022999,2]
[358182602,1744821047358,-246.59130426,0.00023,2]
[358182603,1744821047368,-203.88633689,0.00023,2]
[358182604,1744821047378,-151.0,0.00023508,2]
[358182605,1744821047388,-2581.62887732,0.00023889,2]
[358182606,1744821047401,-136.97112268,0.00023889,2]
[358182607,1744821047412,-2718.6,0.00023889,2]
[358182608,1744821047423,-2718.6,0.00023889,2]
[358182609,1744821047433,-2718.6,0.00023889,2]
[358182610,1744821047443,-2718.6,0.00023889,2]
[358182611,1744821047453,-2718.6,0.00023889,2]
[358182612,1744821047463,-2718.6,0.00023889,2]
[358182613,1744821047476,-2718.6,0.00023889,2]
[358182614,1744821047486,-2530.85698993,0.00023889,2]
[358182615,1744821047499,-187.74301007,0.00023889,2]
[358182616,1744821047510,-2718.6,0.00023889,2]
[358182617,1744821047520,-2718.6,0.00023889,2]
[358182618,1744821047530,-2718.6,0.00023889,2]
[358182619,1744821047541,-420.0,0.00023964,2]
[358182620,1744821047552,-424.26971435,0.0002399,2]
[358182621,1744821047562,-1673.61124492,0.00024,2]
[358182622,1744821047571,-155.0,0.00024,2]
[358182623,1744821047581,-284.9910927,0.00024067,2]
[358182624,1744821047591,-1176.23968842,0.00024068,2]
[358182630,1744821204586,-175.42756002,0.00021232,2]
[358182631,1744821596150,-217.69545765,0.00021096,2]
[358182632,1744822029372,-237.24867383,0.00019132,2]
[358182634,1744822043121,-471.65527661,0.00021014,2]
[358182679,1744822232547,-255.90531252,0.00021014,2]
[358182690,1744822238409,-2323.08506747,0.00021014,2]
[358182691,1744822238419,-3252.55515525,0.00021096,2]
[358182692,1744822238429,-197.8314243,0.00021097,2]
[358182693,1744822238439,-300.0,0.00021231,2]
[358182694,1744822238449,-1824.57243998,0.00021232,2]
[358182695,1744822238460,-201.1495057,0.00021232,2]
[358182696,1744822238469,-1000.0,0.00021689,2]
[358182697,1744822238479,-720.256761,0.00022041,2]
[358182698,1744822238489,-250.0,0.000221,2]
[358182699,1744822238498,-250.0,0.000221,2]
[358182700,1744822238508,-151.0,0.0002213,2]
[358182701,1744822238518,-525.53155144,0.00022139,2]
[358182702,1744822238527,-239.86010022,0.00022139,2]
[358182703,1744822238537,-193.14288463,0.00022139,2]
[358182704,1744822238547,-500.0,0.00022139,2]
[358182705,1744822238557,-500.0,0.00022139,2]
[358182706,1744822238566,-500.0,0.00022139,2]
[358182707,1744822238576,-500.0,0.00022139,2]
[358182708,1744822238586,-500.0,0.00022139,2]
[358182709,1744822238595,-500.0,0.00022139,2]
[358182710,1744822238605,-500.0,0.00022139,2]
[358182711,1744822238615,-500.0,0.00022139,2]
[358182712,1744822238625,-500.0,0.00022139,2]
[358182713,1744822238634,-500.0,0.00022139,2]
[358182714,1744822238644,-500.0,0.00022139,2]
[358182715,1744822238654,-500.0,0.00022139,2]
[358182716,1744822238664,-500.0,0.00022139,2]
[358182718,1744822238674,-500.0,0.00022139,2]
[358182719,1744822238683,-500.0,0.00022139,2]
[358182721,1744822238693,-500.0,0.00022139,2]
[358182722,1744822238702,-500.0,0.00022139,2]
[358182723,1744822238713,-500.0,0.00022139,2]
[358182724,1744822238723,-500.0,0.00022139,2]
[358182725,1744822238732,-500.0,0.00022139,2]
[358182726,1744822238743,-500.0,0.00022139,2]
[358182727,1744822238753,-500.0,0.00022139,2]
[358182728,1744822238763,-500.0,0.00022139,2]
[358182729,1744822238772,-500.0,0.00022139,2]
[358182730,1744822238782,-500.0,0.00022139,2]
[358182731,1744822238791,-500.0,0.00022139,2]
[358182732,1744822238801,-500.0,0.00022139,2]
[358182733,1744822238811,-500.0,0.00022139,2]
[358182734,1744822238821,-500.0,0.00022139,2]
[358182735,1744822238830,-530.0,0.00022139,2]
[358182736,1744822238840,-500.0,0.00022139,2]
[358182737,1744822238851,-500.0,0.00022139,2]
[358182738,1744822238861,-500.0,0.00022139,2]
[358182739,1744822238871,-500.0,0.00022139,2]
[358182740,1744822238881,-500.0,0.00022139,2]
[358182741,1744822238891,-500.0,0.00022139,2]
[358182742,1744822238901,-500.0,0.00022139,2]
[358182743,1744822238911,-500.0,0.00022139,2]
[358182744,1744822238921,-500.0,0.00022139,2]
[358182745,1744822238931,-500.0,0.00022139,2]
[358182746,1744822238941,-500.0,0.00022139,2]
[358182747,1744822238950,-500.0,0.00022139,2]
[358182748,1744822238961,-500.0,0.00022139,2]
[358182749,1744822238971,-500.0,0.00022139,2]
[358182750,1744822238980,-500.0,0.00022139,2]
[358182751,1744822238990,-500.0,0.00022139,2]
[358182752,1744822238999,-500.0,0.00022139,2]
[358182753,1744822239009,-500.0,0.00022139,2]
[358182754,1744822239019,-500.0,0.00022139,2]
[358182755,1744822239028,-500.0,0.00022139,2]
[358182756,1744822239038,-500.0,0.00022139,2]
[358182757,1744822239048,-500.0,0.00022139,2]
[358182758,1744822239057,-500.0,0.00022139,2]
[358182759,1744822239067,-500.0,0.00022139,2]
[358182760,1744822239077,-500.0,0.00022139,2]
[358182761,1744822239086,-500.0,0.00022139,2]
[358182762,1744822239096,-500.0,0.00022139,2]
[358182763,1744822239106,-500.0,0.00022139,2]
[358182764,1744822239116,-500.0,0.00022139,2]
[358182765,1744822239126,-500.0,0.00022139,2]
[358182766,1744822239136,-500.0,0.00022139,2]
[358182767,1744822239146,-500.0,0.00022139,2]
[358182768,1744822239156,-500.0,0.00022139,2]
[358182769,1744822239165,-500.0,0.00022139,2]
[358182770,1744822239175,-500.0,0.00022139,2]
[358182771,1744822239185,-500.0,0.00022139,2]
[358182772,1744822239195,-500.0,0.00022139,2]
[358182773,1744822239204,-500.0,0.00022139,2]
[358182774,1744822239215,-500.0,0.00022139,2]
[358182775,1744822239225,-500.0,0.00022139,2]
[358182776,1744822239235,-500.0,0.00022139,2]
[358182777,1744822239244,-500.0,0.00022139,2]
[358182778,1744822239254,-500.0,0.00022139,2]
[358182779,1744822239263,-500.0,0.00022139,2]
[358182780,1744822239273,-500.0,0.00022139,2]
[358182781,1744822239282,-500.0,0.00022139,2]
[358182782,1744822239292,-500.0,0.00022139,2]
[358182783,1744822239301,-500.0,0.00022139,2]
[358182784,1744822239311,-500.0,0.00022139,2]
[358182785,1744822239320,-500.0,0.00022139,2]
[358182786,1744822239330,-1855.35740768,0.0002214,2]
[358182787,1744822239340,-750.015184,0.00022143,7]
[358182788,1744822239349,-750.015184,0.00022143,7]
[358182789,1744822239359,-750.015184,0.00022143,7]
[358182790,1744822239369,-750.015184,0.00022143,7]
[358182791,1744822239378,-750.015184,0.00022143,7]
[358182792,1744822239388,-750.015184,0.00022143,7]
[358182793,1744822239397,-750.015184,0.00022143,7]
[358182794,1744822239407,-750.015184,0.00022143,7]
[358182795,1744822239416,-500.0,0.000222,2]
[358182796,1744822239425,-500.0,0.000222,2]
[358182797,1744822239435,-360.2600692,0.000222,2]
[358182798,1744822239445,-500.0,0.000222,2]
[358182799,1744822239455,-500.0,0.000222,2]
[358182800,1744822239464,-454.71085951,0.000222,2]
[358182801,1744822239474,-500.0,0.000222,2]
[358182802,1744822239484,-500.0,0.000222,2]
[358182803,1744822239494,-500.0,0.000222,2]
[358182804,1744822239503,-500.0,0.000222,2]
[358182805,1744822239513,-500.0,0.000222,2]
[358182806,1744822239522,-563.1260286,0.000222,2]
[358182807,1744822239532,-500.0,0.000222,2]
[358182808,1744822239541,-539.02075636,0.000222,2]
[358182809,1744822239551,-500.0,0.000222,2]
[358182810,1744822239560,-502.34118889,0.000222,2]
[358182811,1744822239569,-500.0,0.000222,2]
[358182812,1744822239578,-500.0,0.000222,2]
[358182813,1744822239588,-500.0,0.000222,2]
[358182814,1744822239597,-500.0,0.000222,2]
[358182815,1744822239607,-500.0,0.000222,2]
[358182816,1744822239616,-500.0,0.000222,2]
[358182817,1744822239626,-500.0,0.000222,2]
[358182818,1744822239637,-500.0,0.000222,2]
[358182819,1744822239647,-300.0,0.000222,2]
[358182820,1744822239657,-500.0,0.000222,2]
[358182821,1744822239667,-500.0,0.000222,2]
[358182822,1744822239676,-500.0,0.000222,2]
[358182823,1744822239687,-500.0,0.000222,2]
[358182824,1744822239696,-224.10404573,0.000222,2]
[358182825,1744822239706,-302.14931772,0.00022259,2]
[358182826,1744822239716,-720.25676098,0.00022644,2]
[358182827,1744822239726,-420.0,0.00023198,2]
[358182828,1744822239735,-720.25676098,0.00023248,2]
[358182829,1744822239745,-411.2690894,0.00023344,2]
[358182831,1744822239755,-300.0,0.00023499,2]
[358182833,1744822239765,-250.0,0.000236,2]
[358182835,1744822239774,-250.0,0.000236,2]
[358182836,1744822239784,-720.25676098,0.00023851,2]
[358182837,1744822239793,-2095.46031158,0.00024068,2]
[358182838,1744822239803,-3271.7,0.00024068,2]
[358182839,1744822239812,-3271.7,0.00024068,2]
[358182840,1744822239822,-237.24867383,0.00024132,2]
[358182841,1744822239832,-2652.7,0.00024182,2]
[358182842,1744822239842,-151.0,0.000244,10]
[358182843,1744822239852,-170.3347168,0.00024448,2]
[358182844,1744822239862,-720.25676098,0.00024454,2]
[358182845,1744822239872,-1037.62289808,0.00024454,2]
[358182846,1744822239881,-102107.84090006,0.00024554,2]
[358182847,1744822239891,-750.015184,0.00024554,7]
[358182848,1744822239901,-750.015184,0.00024554,7]
[358182849,1744822239910,-1905.3880653,0.000246,5]
[358182850,1744822239921,-1905.38806529,0.000246,5]
[358182851,1744822239933,-1905.38806529,0.000246,5]
[358182852,1744822239942,-1905.38806529,0.000246,5]
[358182853,1744822239952,-1905.38806529,0.000246,5]
[358182854,1744822239962,-1905.38806529,0.000246,5]
[358182856,1744822239972,-1905.38806529,0.000246,5]
[358182857,1744822239982,-151.0,0.00024642,2]
[358182858,1744822239992,-176.69761266,0.00024656,2]
[358182859,1744822240001,-183.66314054,0.00024656,2]
[358182860,1744822240011,-1857.75375058,0.00024656,2]
[358182861,1744822240022,-1397.04,0.00024657,2]
[358182862,1744822240032,-12678.13,0.00024657,2]
[358182863,1744822240042,-500.0,0.00024657,2]
[358182864,1744822240052,-500.0,0.00024657,2]
[358182865,1744822240062,-500.0,0.00024657,2]
[358182866,1744822240072,-500.0,0.00024657,2]
[358182867,1744822240082,-500.0,0.00024657,2]
[358182868,1744822240092,-1418.81,0.00024657,2]
[358182870,1744822240102,-500.0,0.00024657,2]
[358182872,1744822240111,-500.0,0.00024657,2]
[358182874,1744822240121,-411.64596131,0.00024657,2]
[358182876,1744822240131,-500.0,0.00024657,2]
[358182878,1744822240140,-500.0,0.00024657,2]
[358182880,1744822240151,-1129.38,0.00024657,2]
[358182882,1744822240160,-500.0,0.00024657,2]
[358182885,1744822240170,-500.0,0.00024657,2]
[358182887,1744822240180,-1184.56,0.00024657,2]
[358182889,1744822240190,-500.0,0.00024657,2]
[358182891,1744822240200,-500.0,0.00024657,2]
[358182893,1744822240210,-1964.3,0.00024657,2]
[358182895,1744822240220,-500.0,0.00024657,2]
[358182897,1744822240230,-500.0,0.00024657,2]
[358182899,1744822240239,-500.0,0.00024657,2]
[358182901,1744822240249,-500.0,0.00024657,2]
[358182903,1744822240258,-500.0,0.00024657,2]
[358182905,1744822240268,-500.0,0.00024657,2]
[358182907,1744822240277,-500.0,0.00024657,2]
[358182909,1744822240287,-500.0,0.00024657,2]
[358182910,1744822240297,-1381.64,0.00024657,2]
[358182912,1744822240306,-544.39128391,0.00024657,2]
[358182914,1744822240316,-500.0,0.00024657,2]
[358182916,1744822240325,-1110.36,0.00024657,2]
[358182918,1744822240334,-643.03,0.00024657,2]
[358182919,1744822240344,-500.0,0.00024657,2]
[358182921,1744822240354,-500.0,0.00024657,2]
[358182922,1744822240364,-500.0,0.00024657,2]
[358182923,1744822240373,-500.0,0.00024657,2]
[358182924,1744822240383,-500.0,0.00024657,2]
[358182925,1744822240393,-500.0,0.00024657,2]
[358182926,1744822240403,-6736.68,0.00024657,2]
[358182927,1744822240412,-500.0,0.00024657,2]
[358182928,1744822240421,-500.0,0.00024657,2]
[358182929,1744822240430,-500.0,0.00024657,2]
[358182931,1744822240440,-1330.02,0.00024657,2]
[358182933,1744822240449,-500.0,0.00024657,2]
[358182935,1744822240459,-500.0,0.00024657,2]
[358182937,1744822240468,-500.0,0.00024657,2]
[358182939,1744822240477,-577.98,0.00024657,2]
[358182941,1744822240487,-500.0,0.00024657,2]
[358182943,1744822240496,-500.0,0.00024657,2]
[358182945,1744822240505,-500.0,0.00024657,2]
[358182947,1744822240514,-500.0,0.00024657,2]
[358182949,1744822240524,-2374.05,0.00024657,2]
[358182951,1744822240533,-2374.05,0.00024657,2]
[358182953,1744822240543,-500.0,0.00024657,2]
[358182955,1744822240553,-500.0,0.00024657,2]
[358182957,1744822240563,-500.0,0.00024657,2]
[358182959,1744822240572,-503.85429766,0.00024657,2]
[358182961,1744822240582,-610.8,0.00024657,2]
[358182963,1744822240592,-520.12,0.00024657,2]
[358182965,1744822240601,-500.0,0.00024657,2]
[358182967,1744822240610,-500.0,0.00024657,2]
[358182969,1744822240621,-500.0,0.00024657,2]
[358182971,1744822240630,-500.0,0.00024657,2]
[358182973,1744822240641,-500.0,0.00024657,2]
[358182975,1744822240650,-1300.62,0.00024657,2]
[358182977,1744822240659,-1339.1,0.00024657,2]
[358182979,1744822240669,-579.69,0.00024657,2]
[358182981,1744822240678,-500.0,0.00024657,2]
[358182983,1744822240687,-500.0,0.00024657,2]
[358182985,1744822240696,-1948.68,0.00024657,2]
[358182987,1744822240706,-505.44,0.00024657,2]
[358182989,1744822240716,-500.0,0.00024657,2]
[358182991,1744822240725,-612.74236485,0.00024657,2]